fUSD/lending_fUSD_20240427
["ID","MTS","AMOUNT","RATE_DAILY","PERIOD"]
[323738638,1714225841954,-500.0,0.00011162,2]
[323738639,1714225841963,-725.91,0.00011162,2]
[323738640,1714225841972,-577.16902444,0.00011162,2]
[323738641,1714225841982,-171.44312381,0.00011162,2]
[323738642,1714225841991,-500.0,0.00011162,2]
[323738643,1714225842001,-500.0,0.00011162,2]
[323738644,1714225842011,-375.38,0.00011162,2]
[323738645,1714225842019,-809.51,0.00011162,2]
[323738646,1714225842029,-657.92,0.00011162,2]
[323738647,1714225842039,-1075.24,0.00011162,2]
[323738648,1714225842049,-500.0,0.00011162,2]
[323738649,1714225842060,-500.0,0.00011162,2]
[323738650,1714225842070,-500.0,0.00011162,2]
[323738651,1714225842081,-500.0,0.00011162,2]
[323738652,1714225842092,-500.0,0.00011162,2]
[323738653,1714225842103,-500.0,0.00011162,2]
[323738654,1714225842114,-500.0,0.00011162,2]
[323738655,1714225842123,-500.0,0.00011162,2]
[323738656,1714225842133,-456.05981621,0.00011162,2]
[323738657,1714225842142,-501.95543577,0.00011162,2]
[323738658,1714225842152,-501.53661146,0.00011162,2]
[323738659,1714225842161,-500.0,0.00011162,2]
[323738660,1714225842170,-612.8,0.00011162,2]
[323738661,1714225842180,-500.0,0.00011162,2]
[323738662,1714225842189,-500.0,0.00011162,2]
[323738663,1714225842401,-500.0,0.00011162,2]
[323738664,1714225842411,-500.0,0.00011162,2]
[323738665,1714225842420,-500.0,0.00011162,2]
[323738666,1714225842430,-524.4,0.00011162,2]
[323738667,1714225842440,-524.4,0.00011162,2]
[323738668,1714225842450,-524.4,0.00011162,2]
[323738669,1714225842460,-524.4,0.00011162,2]
[323738670,1714225842470,-524.4,0.00011162,2]
[323738671,1714225842479,-524.4,0.00011162,2]
[323738672,1714225842488,-524.4,0.00011162,2]
[323738673,1714225842498,-524.4,0.00011162,2]
[323738674,1714225842509,-524.4,0.00011162,2]
[323738675,1714225842519,-524.4,0.00011162,2]
[323738676,1714225842528,-524.4,0.00011162,2]
[323738677,1714225842537,-524.4,0.00011162,2]
[323738678,1714225842547,-524.4,0.00011162,2]
[323738679,1714225842556,-524.4,0.00011162,2]
[323738680,1714225842567,-524.4,0.00011162,2]
[323738681,1714225842576,-524.4,0.00011162,2]
[323738682,1714225842585,-524.4,0.00011162,2]
[323738683,1714225842595,-524.4,0.00011162,2]
[323738684,1714225842604,-524.4,0.00011162,2]
[323738685,1714225842614,-524.4,0.00011162,2]
[323738686,1714225842623,-524.4,0.00011162,2]
[323738687,1714225842632,-524.4,0.00011162,2]
[323738688,1714225842642,-524.4,0.00011162,2]
[323738689,1714225842651,-524.55,0.00011162,2]
[323738690,1714225842660,-500.0,0.00011162,2]
[323738691,1714225842670,-500.0,0.00011162,2]
[323738692,1714225842678,-500.0,0.00011162,2]
[323738693,1714225842688,-500.0,0.00011162,2]
[323738694,1714225842697,-500.0,0.00011162,2]
[323738695,1714225842707,-911.05,0.00011162,2]
[323738696,1714225842716,-500.0,0.00011162,2]
[323738697,1714225842726,-500.0,0.00011162,2]
[323738698,1714225842735,-546.46,0.00011162,2]
[323738699,1714225842744,-500.0,0.00011162,2]
[323738700,1714225842753,-500.0,0.00011162,2]
[323738701,1714225842763,-216.65808438,0.00011162,2]
[323738702,1714225842772,-500.0,0.00011162,2]
[323738703,1714225842781,-749.14,0.00011162,2]
[323738705,1714225842790,-500.0,0.00011162,2]
[323738707,1714225842800,-500.0,0.00011162,2]
[323738709,1714225842810,-500.0,0.00011162,2]
[323738710,1714225842819,-500.0,0.00011162,2]
[323738712,1714225842828,-500.0,0.00011162,2]
[323738713,1714225842837,-500.0,0.00011162,2]
[323738715,1714225842846,-500.0,0.00011162,2]
[323738717,1714225842856,-364.99140853,0.00011162,2]
[323738718,1714225842865,-853.96,0.00011162,2]
[323738719,1714225842874,-2205.23,0.00011162,2]
[323738720,1714225842883,-500.0,0.00011162,2]
[323738721,1714225842893,-500.0,0.00011162,2]
[323738723,1714225842902,-500.0,0.00011162,2]
[323738725,1714225842911,-521.4709431,0.00011162,2]
[323738726,1714225842921,-500.0,0.00011162,2]
[323738727,1714225842930,-562.92,0.00011162,2]
[323738728,1714225842940,-500.0,0.00011162,2]
[323738729,1714225842949,-151.0,0.00011164,2]
[323738730,1714225842959,-220.278332,0.00011164,2]
[323738731,1714225842968,-213.70058911,0.00011168,2]
[323738732,1714225842978,-548.33960924,0.0001117,2]
[323738733,1714225842987,-1058.61,0.00011171,2]
[323738735,1714225842996,-610.8,0.00011171,2]
[323738737,1714225843005,-500.0,0.00011171,2]
[323738739,1714225843015,-557.98,0.00011171,2]
[323738741,1714225843024,-1212.76,0.00011171,2]
[323738743,1714225843034,-500.95,0.00011171,2]
[323738746,1714225843043,-723.21,0.00011171,2]
[323738748,1714225843052,-558.87,0.00011171,2]
[323738750,1714225843061,-500.0,0.00011171,2]
[323738752,1714225843071,-897.47,0.00011171,2]
[323738754,1714225843080,-500.0,0.00011171,2]
[323738756,1714225843090,-500.0,0.00011171,2]
[323738758,1714225843099,-500.0,0.00011171,2]
[323738760,1714225843109,-854.18,0.00011171,2]
[323738762,1714225843118,-500.0,0.00011171,2]
[323738764,1714225843127,-500.0,0.00011171,2]
[323738766,1714225843136,-2090.51,0.00011171,2]
[323738768,1714225843145,-500.0,0.00011171,2]
[323738770,1714225843154,-500.0,0.00011171,2]
[323738772,1714225843163,-500.0,0.00011171,2]
[323738774,1714225843173,-1535.14,0.00011171,2]
[323738776,1714225843182,-959.41,0.00011171,2]
[323738778,1714225843191,-151.0,0.00011172,2]
[323738780,1714225843200,-151.0,0.00011172,2]
[323738782,1714225843209,-445.91052231,0.00011174,2]
[323738784,1714225843219,-500.0,0.00011174,2]
[323738785,1714225843230,-500.0,0.00011174,2]
[323738786,1714225843240,-500.0,0.00011174,2]
[323738787,1714225843249,-504.00648297,0.00011174,2]
[323738788,1714225843258,-500.17132061,0.00011174,2]
[323738789,1714225843268,-500.0,0.00011174,2]
[323738790,1714225843277,-500.00829819,0.00011174,2]
[323738791,1714225843285,-151.0,0.00011174,2]
[323738792,1714225843294,-155.64726515,0.00011174,2]
[323738793,1714225843304,-501.155277,0.00011174,2]
[323738794,1714225843314,-500.0,0.00011174,2]
[323738795,1714225843324,-296.75157899,0.00011174,2]
[323738796,1714225843333,-500.0,0.00011174,2]
[323738797,1714225843342,-500.0,0.00011174,2]
[323738798,1714225843351,-500.0,0.00011174,2]
[323738799,1714225843361,-500.0,0.00011174,2]
[323738800,1714225843370,-2248.3,0.00011174,2]
[323738801,1714225843379,-500.0,0.00011174,2]
[323738802,1714225843388,-500.0,0.00011174,2]
[323738803,1714225843398,-500.0,0.00011174,2]
[323738804,1714225843407,-500.0,0.00011174,2]
[323738805,1714225843416,-500.0,0.00011175,2]
[323738806,1714225843425,-214.18,0.00011175,2]
[323738807,1714225843434,-500.0,0.00011175,2]
[323738808,1714225843443,-151.0,0.00011175,2]
[323738809,1714225843452,-500.0,0.00011175,2]
[323738810,1714225843461,-500.0,0.00011175,2]
[323738811,1714225843471,-621.84015726,0.00011176,2]
[323738812,1714225843480,-186.19190156,0.00011176,2]
[323738813,1714225843489,-418.39404616,0.00011176,2]
[323738814,1714225843498,-155.0,0.00011176,2]
[323738815,1714225843507,-207.33070675,0.00011176,2]
[323738816,1714225843517,-5848.77040818,0.00011176,2]
[323738817,1714225843526,-3420.09936281,0.00011176,2]
[323738818,1714225843535,-447.29038375,0.00011176,2]
[323738819,1714225843544,-155.29969701,0.00011176,2]
[323738820,1714225843553,-170.2096812,0.00011176,2]
[323738821,1714225843563,-155.09863485,0.00011176,2]
[323738822,1714225843573,-164.86564985,0.00011176,2]
[323738823,1714225843583,-157.48132214,0.00011176,2]
[323738825,1714225843592,-158.02576684,0.00011176,2]
[323738827,1714225843602,-332.76192314,0.00011176,2]
[323738828,1714225843612,-266.18814563,0.00011176,2]
[323738829,1714225843622,-155.05752611,0.00011176,2]
[323738830,1714225843631,-155.0,0.00011176,2]
[323738831,1714225843641,-207.53674708,0.00011176,2]
[323738832,1714225843650,-156.69124976,0.00011176,2]
[323738833,1714225843660,-194.69573726,0.00011176,2]
[323738834,1714225843669,-210.50432826,0.00011176,2]
[323738835,1714225843678,-310.31597305,0.00011176,2]
[323738836,1714225843689,-236.6335643,0.00011176,2]
[323738837,1714225843699,-500.0,0.00011176,2]
[323738838,1714225843708,-178.65665428,0.00011176,2]
[323738839,1714225843717,-255.22177855,0.00011176,2]
[323738840,1714225843727,-1368.8421801,0.00011177,2]
[323738841,1714225843736,-228.19119766,0.00011177,2]
[323738842,1714225843745,-155.14460402,0.00011177,2]
[323738843,1714225843754,-488.15040973,0.00011177,2]
[323738844,1714225843763,-155.0,0.00011177,2]
[323738845,1714225843773,-5547.56885349,0.00011177,2]
[323738846,1714225843783,-234.6136824,0.00011177,2]
[323738847,1714225843792,-155.0,0.00011177,2]
[323738848,1714225843801,-156.18553837,0.00011177,2]
[323738849,1714225843811,-157.01880557,0.00011177,2]
[323738850,1714225843821,-156.66296731,0.00011177,2]
[323738851,1714225843831,-864.68443335,0.00011177,3]
[323738852,1714225843841,-151.0,0.00011177,2]
[323738853,1714225843850,-500.0,0.00011177,2]
[323738854,1714225843861,-500.0,0.00011177,2]
[323738855,1714225843870,-500.0,0.00011177,2]
[323738856,1714225843879,-500.0,0.00011177,2]
[323738857,1714225843889,-500.0,0.00011177,2]
[323738858,1714225843898,-500.0,0.00011177,2]
[323738859,1714225843908,-500.0,0.00011177,2]
[323738860,1714225843917,-500.0,0.00011177,2]
[323738861,1714225843926,-500.0,0.00011177,2]
[323738862,1714225843936,-500.0,0.00011177,2]
[323738863,1714225843945,-1212.76,0.00011177,2]
[323738864,1714225843954,-1212.76,0.00011177,2]
[323738865,1714225843963,-1212.76,0.00011177,2]
[323738866,1714225843972,-1212.76,0.00011177,2]
[323738867,1714225843981,-1212.76,0.00011177,2]
[323738868,1714225843991,-500.0,0.00011177,2]
[323738869,1714225844000,-500.0,0.00011177,2]
[323738870,1714225844020,-500.0,0.00011177,2]
[323738871,1714225844031,-500.0,0.00011177,2]
[323738872,1714225844040,-604.7,0.00011177,2]
[323738873,1714225844050,-877.0,0.00011178,2]
[323738874,1714225844061,-992301.00495976,0.00011178,2]
[323738875,1714225844081,-5403.02388051,0.00011178,2]
[323738876,1714225844093,-258322.13393453,0.00011178,2]
[323738877,1714225844102,-151.0,0.00011178,2]
[323738878,1714225844113,-500.0,0.00011178,2]
[323738879,1714225844123,-628.73017738,0.00011178,2]
[323738880,1714225844133,-500.0,0.00011178,2]
[323738881,1714225844142,-445.68705153,0.00011178,2]
[323738882,1714225844153,-54.31294847,0.00011178,2]
[323738883,1714225844164,-1212.76,0.00011178,2]
[323738884,1714225844173,-1212.76,0.00011178,2]
[323738885,1714225844182,-1164.04705153,0.00011178,2]
[323738886,1714225844558,-48.71294847,0.00011178,2]
[323738887,1714225844568,-1212.76,0.00011178,2]
[323738888,1714225844577,-1212.76,0.00011178,2]
[323738889,1714225844585,-712.15,0.00011178,2]
[323738890,1714225844594,-151.0,0.00011179,2]
[323738891,1714225844602,-1212.76,0.00011179,2]
[323738892,1714225844612,-1212.76,0.00011179,2]
[323738893,1714225844622,-1212.76,0.00011179,2]
[323738894,1714225844631,-7284.41765976,0.0001118,2]
[323738895,1714225844643,-301.82998088,0.0001118,2]
[323738896,1714225844656,-2847.59268996,0.0001118,2]
[323738897,1714225844667,-286.93626806,0.0001118,2]
[323738898,1714225844687,-881.01624611,0.00011076,2]
[323738899,1714225844702,-862.3800003,0.00011076,2]
[323738900,1714225844714,-569.37043061,0.00011076,2]
[323738901,1714225844739,-535.45852577,0.00010999,2]
[323738902,1714225844749,-3211.54462967,0.00011076,2]
[323738903,1714225844761,-11171.80869331,0.00011076,2]
[323738904,1714225844771,-785136.20957942,0.0001118,2]
[323738905,1714225844780,-151.0,0.0001118,2]
[323738906,1714225844790,-151.0,0.0001118,2]
[323738907,1714225844799,-1000.0,0.000112,2]
[323738908,1714225844808,-151.0,0.0001121,2]
[323738909,1714225844819,-1212.76,0.0001121,2]
[323738910,1714225844828,-2311.113,0.0001121,2]
[323738911,1714225844836,-1395.0,0.0001121,2]
[323738912,1714225844845,-464.794,0.0001121,2]
[323738913,1714225844855,-973.839,0.0001121,2]
[323738914,1714225844864,-1228.0,0.0001121,2]
[323738915,1714225844873,-1257.0,0.0001121,2]
[323738916,1714225844883,-664.277,0.0001121,2]
[323738917,1714225844892,-208.0,0.0001121,2]
[323738918,1714225844901,-813.339,0.0001121,2]
[323738919,1714225844911,-1860.0,0.0001121,2]
[323738920,1714225844920,-614.824,0.0001121,2]
[323738921,1714225844930,-440.341,0.0001121,2]
[323738922,1714225844940,-1475.0,0.0001121,2]
[323738923,1714225844950,-420.0,0.0001121,2]
[323738924,1714225844959,-2447.0,0.0001121,2]
[323738925,1714225844968,-151.059,0.0001121,2]
[323738926,1714225844977,-3131.0,0.0001121,2]
[323738927,1714225844987,-150.87,0.0001121,2]
[323738928,1714225844996,-1651.287,0.0001121,2]
[323738929,1714225845006,-215.0,0.0001121,2]
[323738930,1714225845015,-445.132,0.0001121,2]
[323738931,1714225845025,-1148.297,0.0001121,2]
[323738932,1714225845034,-5734.0,0.0001121,2]
[323738933,1714225845044,-2290.0,0.0001121,2]
[323738934,1714225845054,-5897.0,0.0001121,2]
[323738935,1714225845064,-37720.0,0.0001121,2]
[323738936,1714225845073,-250.0,0.0001121,2]
[323738937,1714225845082,-152.0,0.0001121,2]
[323738938,1714225845092,-248.34,0.0001121,2]
[323738939,1714225845102,-1056.0,0.0001121,2]
[323738940,1714225845112,-161.093,0.0001121,2]
[323738941,1714225845122,-257.327,0.0001121,2]
[323738942,1714225845132,-200.0,0.0001121,2]
[323738943,1714225845141,-260.0,0.0001121,2]
[323738944,1714225845150,-496.99987334,0.00011215,2]
[323738945,1714225845160,-500.0,0.00011232,2]
[323738946,1714225845169,-500.0,0.00011232,2]
[323738947,1714225845178,-500.0,0.00011232,2]
[323738948,1714225845188,-500.0,0.00011232,2]
[323738949,1714225845197,-225.0080245,0.00011232,2]
[323738950,1714225845206,-500.0,0.00011232,2]
[323738951,1714225845216,-430.33,0.00011232,2]
[323738952,1714225845225,-500.0,0.00011232,2]
[323738953,1714225845239,-500.0,0.00011232,2]
[323738954,1714225845248,-500.0,0.00011232,2]
[323738955,1714225845257,-500.0,0.00011232,2]
[323738956,1714225845266,-500.0,0.00011232,2]
[323738957,1714225845275,-500.0,0.00011232,2]
[323738958,1714225845284,-500.0,0.00011232,2]
[323738959,1714225845293,-500.0,0.00011232,2]
[323738960,1714225845304,-404.29,0.00011232,2]
[323738961,1714225845316,-500.0,0.00011232,2]
[323738962,1714225845326,-500.0,0.00011232,2]
[323738963,1714225845335,-500.0,0.00011232,2]
[323738964,1714225845345,-500.0,0.00011232,2]
[323738965,1714225845354,-500.0,0.00011232,2]
[323738966,1714225845364,-500.0,0.00011232,2]
[323738967,1714225845374,-574.51970184,0.00011232,2]
[323738968,1714225845384,-189.85,0.00011232,2]
[323738969,1714225845393,-500.0,0.00011232,2]
[323738970,1714225845404,-648.79719455,0.00011232,2]
[323738971,1714225845413,-500.0,0.00011232,2]
[323738972,1714225845423,-1582.98,0.00011232,2]
[323738973,1714225845432,-500.0,0.00011232,2]
[323738974,1714225845442,-500.0,0.00011232,2]
[323738975,1714225845453,-500.0,0.00011232,2]
[323738976,1714225845462,-500.0,0.00011232,2]
[323738977,1714225845472,-500.0,0.00011232,2]
[323738978,1714225845481,-500.0,0.00011232,2]
[323738979,1714225845490,-500.0,0.00011232,2]
[323738980,1714225845500,-500.0,0.00011232,2]
[323738981,1714225845509,-500.0,0.00011232,2]
[323738982,1714225845521,-500.0,0.00011232,2]
[323738983,1714225845556,-154.25506,0.00011232,2]
[323738984,1714225845568,-500.0,0.00011232,2]
[323738985,1714225845579,-500.0,0.00011232,2]
[323738986,1714225845590,-500.0,0.00011232,2]
[323738987,1714225845600,-500.0,0.00011232,2]
[323738988,1714225845610,-500.0,0.00011232,2]
[323738989,1714225845619,-529.49,0.00011232,2]
[323738990,1714225845628,-500.0,0.00011232,2]
[323738991,1714225845637,-500.0,0.00011232,2]
[323738992,1714225845646,-500.0,0.00011232,2]
[323738993,1714225845655,-500.0,0.00011232,2]
[323738994,1714225845665,-500.0,0.00011232,2]
[323738995,1714225845674,-500.0,0.00011232,2]
[323738996,1714225845683,-500.0,0.00011232,2]
[323738997,1714225845692,-500.0,0.00011232,2]
[323738998,1714225845701,-500.0,0.00011232,2]
[323738999,1714225845711,-500.0,0.00011232,2]
[323739000,1714225845721,-500.0,0.00011232,2]
[323739001,1714225845730,-500.0,0.00011232,2]
[323739002,1714225845739,-500.0,0.00011232,2]
[323739003,1714225845748,-500.0,0.00011232,2]
[323739004,1714225845758,-500.0,0.00011232,2]
[323739005,1714225845767,-500.0,0.00011232,2]
[323739007,1714225845776,-500.0,0.00011232,2]
[323739008,1714225845786,-500.0,0.00011232,2]
[323739009,1714225845795,-500.0,0.00011232,2]
[323739010,1714225845804,-500.0,0.00011232,2]
[323739011,1714225845813,-500.0,0.00011232,2]
[323739012,1714225845830,-1476.75,0.00011232,2]
[323739013,1714225845840,-500.0,0.00011232,2]
[323739014,1714225845849,-608.26,0.00011232,2]
[323739015,1714225845858,-378.93385087,0.00011232,2]
[323739016,1714225845868,-500.0,0.00011232,2]
[323739017,1714225845877,-500.0,0.00011232,2]
[323739019,1714225845886,-500.0,0.00011232,2]
[323739021,1714225845896,-500.0,0.00011232,2]
[323739022,1714225845905,-500.0,0.00011232,2]
[323739023,1714225845914,-500.0,0.00011232,2]
[323739024,1714225845923,-500.0,0.00011232,2]
[323739025,1714225845933,-500.0,0.00011232,2]
[323739027,1714225845942,-500.0,0.00011232,2]
[323739029,1714225845952,-500.0,0.00011232,2]
[323739031,1714225845961,-500.0,0.00011232,2]
[323739033,1714225845970,-500.0,0.00011232,2]
[323739035,1714225845979,-500.0,0.00011232,2]
[323739037,1714225845988,-213.09233616,0.00011232,2]
[323739038,1714225846002,-331.85766384,0.00011232,2]
[323739040,1714225846011,-500.0,0.00011232,2]
[323739042,1714225846020,-500.0,0.00011232,2]
[323739044,1714225846029,-500.0,0.00011232,2]
[323739046,1714225846039,-500.0,0.00011232,2]
[323739048,1714225846047,-500.0,0.00011232,2]
[323739050,1714225846056,-500.0,0.00011232,2]
[323739052,1714225846068,-500.0,0.00011232,2]
[323739053,1714225846077,-500.0,0.00011232,2]
[323739054,1714225846087,-500.0,0.00011232,2]
[323739055,1714225846096,-1094.99,0.00011232,2]
[323739056,1714225846105,-500.0,0.00011232,2]
[323739057,1714225846114,-551.19,0.00011232,2]
[323739058,1714225846123,-500.0,0.00011232,2]
[323739059,1714225846133,-738.72,0.00011232,2]
[323739060,1714225846143,-500.0,0.00011232,2]
[323739061,1714225846153,-500.0,0.00011232,2]
[323739062,1714225846163,-500.0,0.00011232,2]
[323739063,1714225846172,-1654.9,0.00011232,2]
[323739064,1714225846181,-500.0,0.00011232,2]
[323739065,1714225846191,-632.01,0.00011232,2]
[323739066,1714225846200,-533.05,0.00011232,2]
[323739067,1714225846210,-500.0,0.00011232,2]
[323739068,1714225846219,-500.0,0.00011232,2]
[323739069,1714225846231,-500.0,0.00011232,2]
[323739070,1714225846241,-2673.44,0.00011232,2]
[323739071,1714225846251,-500.0,0.00011232,2]
[323739072,1714225846260,-500.0,0.00011232,2]
[323739073,1714225846270,-500.0,0.00011232,2]
[323739074,1714225846280,-508.76,0.00011232,2]
[323739075,1714225846290,-500.0,0.00011232,2]
[323739076,1714225846298,-1254.41545976,0.00011232,2]
[323739079,1714225846521,-1914.11454024,0.00011232,2]
[323739080,1714225846532,-500.0,0.00011232,2]
[323739081,1714225846544,-500.0,0.00011232,2]
[323739082,1714225846555,-500.0,0.00011232,2]
[323739083,1714225846567,-677.66,0.00011232,2]
[323739084,1714225846577,-3152.65,0.00011232,2]
[323739085,1714225846588,-973.97,0.00011232,2]
[323739086,1714225846597,-1077.28,0.00011232,2]
[323739087,1714225846608,-500.0,0.00011232,2]
[323739088,1714225846619,-530.66,0.00011232,2]
[323739089,1714225846630,-2597.62,0.00011232,2]
[323739090,1714225846642,-500.0,0.00011232,2]
[323739091,1714225846652,-500.0,0.00011232,2]
[323739092,1714225846662,-500.0,0.00011232,2]
[323739093,1714225846672,-500.0,0.00011232,2]
[323739094,1714225846683,-500.0,0.00011232,2]
[323739095,1714225846692,-500.0,0.00011232,2]
[323739096,1714225846703,-500.0,0.00011232,2]
[323739097,1714225846713,-10890.06,0.00011232,2]
[323739098,1714225846722,-500.0,0.00011232,2]
[323739099,1714225846732,-500.0,0.00011232,2]
[323739100,1714225846742,-500.0,0.00011232,2]
[323739101,1714225846752,-500.0,0.00011232,2]
[323739102,1714225846761,-1315.52,0.00011232,2]
[323739103,1714225846770,-500.0,0.00011232,2]
[323739104,1714225846780,-1204.559845,0.00011241,2]
[323739105,1714225846790,-151.258,0.00011256,2]
[323739106,1714225846800,-275.0,0.00011256,2]
[323739107,1714225846809,-150.824,0.00011256,2]
[323739108,1714225846821,-150.354,0.00011256,2]
[323739109,1714225846831,-187.9,0.00011256,2]
[323739110,1714225846840,-281.208,0.00011256,2]
[323739111,1714225846850,-150.057,0.00011256,2]
[323739112,1714225846860,-150.185,0.00011256,2]
[323739113,1714225846869,-254.884,0.00011256,2]
[323739114,1714225846879,-150.0,0.00011256,2]
[323739115,1714225846888,-206.0,0.0001128,2]
[323739116,1714225846898,-584.64122527,0.00011316,2]
[323739117,1714225846912,-6686.72520002,0.00011316,2]
[323739118,1714225846924,-555.61130365,0.00011316,2]
[323739119,1714225846936,-638.19340764,0.00011316,2]
[323739120,1714225846967,-771.69283061,0.00011316,2]
[323739121,1714225846981,-728.79434185,0.00011316,2]
[323739122,1714225846994,-2573.60275192,0.00011316,2]
[323739123,1714225847003,-500.0,0.0001135,2]
[323739124,1714225847014,-224.44468633,0.0001135,2]
[323739125,1714225847026,-275.55531367,0.0001135,2]
[323739126,1714225847036,-355.98468633,0.0001135,2]
[323739127,1714225847543,-682.71251643,0.00011161,2]
[323739128,1714225847553,-1597.16560389,0.00011161,2]
[323739129,1714225847564,-2117.94187968,0.00011176,2]
[323739130,1714225847579,-1782.11811216,0.00011176,2]
[323739131,1714225847589,-144.01531367,0.0001135,2]
[323739132,1714225847600,-500.0,0.0001135,2]
[323739133,1714225847610,-500.0,0.0001135,2]
[323739134,1714225847620,-500.0,0.0001135,2]
[323739135,1714225847629,-158.39190317,0.0001135,2]
[323739136,1714225847643,-341.60809683,0.0001135,2]
[323739137,1714225847654,-207.16,0.0001135,2]
[323739138,1714225847664,-500.0,0.0001135,2]
[323739139,1714225847674,-297.58999766,0.0001135,2]
[323739140,1714225847687,-202.41000234,0.0001135,2]
[323739141,1714225847696,-383.59159474,0.0001135,2]
[323739142,1714225847705,-500.0,0.0001135,2]
[323739143,1714225847714,-202.52,0.0001135,2]
[323739144,1714225847724,-500.0,0.0001135,2]
[323739145,1714225847733,-221.90312181,0.0001135,2]
[323739146,1714225847745,-278.09687819,0.0001135,2]
[323739147,1714225847754,-622.91,0.0001135,2]
[323739148,1714225847764,-500.0,0.0001135,2]
[323739149,1714225847773,-945.52,0.0001135,2]
[323739150,1714225847783,-500.0,0.0001135,2]
[323739151,1714225847792,-500.0,0.0001135,2]
[323739152,1714225847803,-500.0,0.0001135,2]
[323739153,1714225847812,-529.89,0.0001135,2]
[323739154,1714225847824,-1374.18,0.0001135,2]
[323739155,1714225847835,-413.94,0.0001135,2]
[323739156,1714225847844,-500.0,0.0001135,2]
[323739157,1714225847854,-500.0,0.0001135,2]
[323739158,1714225847864,-608.48813691,0.0001135,2]
[323739159,1714225847875,-883.41,0.0001135,2]
[323739160,1714225847885,-500.0,0.0001135,2]
[323739161,1714225847895,-500.0,0.0001135,2]
[323739162,1714225847906,-500.0,0.0001135,2]
[323739163,1714225847916,-500.0,0.0001135,2]
[323739164,1714225847926,-500.0,0.0001135,2]
[323739165,1714225847936,-500.0,0.0001135,2]
[323739166,1714225847946,-1072.78,0.0001135,2]
[323739167,1714225847956,-500.0,0.0001135,2]
[323739168,1714225847966,-2254.35,0.0001135,2]
[323739169,1714225847975,-500.0,0.0001135,2]
[323739170,1714225847986,-771.45,0.0001135,2]
[323739171,1714225847995,-500.0,0.0001135,2]
[323739172,1714225848005,-607.09284093,0.0001135,2]
[323739173,1714225848015,-500.0,0.0001135,2]
[323739174,1714225848027,-500.0,0.0001135,2]
[323739175,1714225848036,-500.0,0.0001135,2]
[323739176,1714225848047,-923.08,0.0001135,2]
[323739177,1714225848057,-396.30198824,0.0001135,2]
[323739178,1714225848071,-127.24801176,0.0001135,2]
[323739179,1714225848080,-500.0,0.0001135,2]
[323739180,1714225848090,-116.49710416,0.0001135,2]
[323739181,1714225848102,-383.50289584,0.0001135,2]
[323739182,1714225848112,-331.82557793,0.0001135,2]
[323739183,1714225848122,-1207.66,0.0001135,2]
[323739184,1714225848132,-500.0,0.0001135,2]
[323739185,1714225848142,-551.19,0.0001135,2]
[323739186,1714225848151,-500.0,0.0001135,2]
[323739187,1714225848160,-500.0,0.0001135,2]
[323739188,1714225848170,-500.0,0.0001135,2]
[323739189,1714225848180,-598.81700177,0.0001135,2]
[323739190,1714225848194,-108.83299823,0.0001135,2]
[323739191,1714225848204,-197.92700177,0.0001135,2]